Cogmind - Beta 10.2 --- EXPLORER MODE // 2021.02.18 @ 19:12:26 // Winter2019/RPGLIKE Player: TeaParrot Result: Self-destructed Performance ------------- Evolutions (2) 1000 Regions Visited (5) 1000 Robots Destroyed (27) 135 Value Destroyed (822) 822 Prototype IDs (27) 540 Alien Tech Used (0) 0 Bonus (300) 300 TOTAL SCORE: 3797 Bonus ------- Aligned with FarCom 300 Cogmind --------- Core Integrity 600/600 Matter 270/300 Energy 249/250 System Corruption 0% Temperature Cool (0) Movement Hovering (56) Location -8/Materials Parts ------- > --- POWER (2) -------- Ion Engine > --- PROPULSION (2) --- Improved Hover Unit Improved Hover Unit > --- UTILITY (2) ------ Structural Scanner > --- WEAPON (3) ------- Advanced Beam Rifle AWS/Thermal > --- INVENTORY (2) ---- Particle Charger Light EM Pulse Cannon Peak State ------------ > --- POWER ------------ Ion Engine > --- PROPULSION ------- Improved Hover Unit Improved Hover Unit > --- UTILITY ---------- Structural Scanner > --- WEAPON ----------- Advanced Beam Rifle AWS/Thermal > --- INVENTORY -------- Particle Charger Light EM Pulse Cannon [Rating: 26] Favorites ----------- Power Ion Engine Engine Ion Engine Propulsion Hover Unit Leg Aluminum Leg Hover Unit Hover Unit Utility Structural Scanner Device Structural Scanner Weapon AWS/Thermal Energy Gun AWS/Thermal Energy Cannon Light EM Pulse Cannon Build | -11 -10 -10 -10 -9 -8 ------- Run | Scr Mat Min Exi Min Mat Slots Evolved 5 | . . . 5 . . Power 1 | . . . 1 . . Propulsion 1 | . . . 1 . . Utility 1 | . . . 1 . . Weapon 2 | . . . 2 . . Parts Attached 11 | 4 1 . 1 2 3 Power 1 | 1 . . . . . Engine 1 | 1 . . . . . Core . | . . . . . . Reactor . | . . . . . . Propulsion 4 | 1 1 . . 1 1 Treads . | . . . . . . Leg 1 | 1 . . . . . Wheel . | . . . . . . Hover 3 | . 1 . . 1 1 Flight . | . . . . . . Utility 1 | 1 . . . . . Device 1 | 1 . . . . . Storage . | . . . . . . Processor . | . . . . . . Hackware . | . . . . . . Protection . | . . . . . . Artifact . | . . . . . . Weapon 5 | 1 . . 1 1 2 Energy Gun 4 | 1 . . 1 1 1 Energy Cannon 1 | . . . . . 1 Ballistic Gun . | . . . . . . Ballistic Cannon . | . . . . . . Launcher . | . . . . . . Special Weapon . | . . . . . . Impact Weapon . | . . . . . . Slashing Weapon . | . . . . . . Piercing Weapon . | . . . . . . Special Melee Weapon . | . . . . . . Unidentified Prototypes 1 | . . . . . 1 Parts Lost . | . . . . . . Power . | . . . . . . Propulsion . | . . . . . . Utility . | . . . . . . Weapon . | . . . . . . Highest Loss Streak . | . . . . . . Average Slot Usage (%) 75 | . 100 100 57 62 65 Engine 17 | . 25 25 14 11 11 Leg 2 | . 17 . . . . Hover 17 | . 7 25 14 20 22 Device 17 | . 25 25 14 11 11 Energy Gun 19 | . 25 25 14 19 18 Naked Turns . | . . . . . . Heaviest Build 18 | 8 8 8 14 17 18 Greatest Support 26 | 10 16 16 16 24 26 Greatest Overweight (x) . | . . . . . . Average Overweight (x) . | . . . . . . Largest Inventory Capacity 2 | . 1 1 2 2 2 Average Capacity 1 | . . 1 1 2 2 Most Carried 2 | . 1 1 2 2 2 Average Carried . | . . 1 . . 1 Final Capacity 2 | . 1 1 2 2 2 Final Carried 2 | . 1 1 . 1 2 Class Distribution -------------------- 74% | Hacker-Mutant 25% | Hacker-Skirmisher Dominant Class ---------------- Hacker-Mutant | -10/Materials Hacker-Mutant | -10/Mines Hacker-Mutant | -10/Exiles Hacker-Skirmisher | -9/Mines Hacker-Skirmisher | -8/Materials Resources | -11 -10 -10 -10 -9 -8 ----------- Run | Scr Mat Min Exi Min Mat Matter Collected 280 | . 148 . . 132 . Remotely . | . . . . . . Salvage Created 759 | . 214 28 . 84 433 Parts 58 | . 16 6 . 13 23 Haulers Intercepted . | . . . . . . Recyclers Shooed . | . . . . . . Parts Field Recycled . | . . . . . . Retrieved Matter . | . . . . . . Parts Self-Destructed . | . . . . . . Prevented . | . . . . . . Kills | -11 -10 -10 -10 -9 -8 ------- Run | Scr Mat Min Exi Min Mat Combat Hostiles Destroyed 21 | . 5 2 . 6 8 Guns 20 | . 5 2 . 6 7 AOE 1 | . . . . . 1 Classes Destroyed 6 | . 4 . . . 2 Worker 2 | . 2 . . . . Operator 1 | . . . . . 1 Watcher 3 | . 1 . . . 2 Swarmer 5 | . 1 2 . . 2 Grunt 13 | . 4 . . 6 3 Sentry 3 | . . . . . 3 Best Kill Streak 8 | . 5 2 . 2 8 Combat Bots Only 5 | . 3 2 . 2 5 Max Kills in Single Turn 1 | . 1 1 . 1 1 Gunslinging . | . . . . . . Exploded 1 | . . . . . 1 Melee . | . . . . . . Uniques/NPCs Destroyed . | . . . . . . Combat | -11 -10 -10 -10 -9 -8 -------- Run | Scr Mat Min Exi Min Mat Damage Taken 281 | . 126 21 . 48 86 Core 226 | . 100 18 . 38 70 Absorbed by Shields . | . . . . . . Redirected to Core 148 | . 69 8 . 31 40 Core Remaining (%) 100 | 100 . . . 100 . Volleys Fired 46 | . 27 4 . 4 11 Largest 1 | . 1 1 . 1 1 Hottest 56 | . 40 40 . 45 56 Shots Fired 91 | . 27 4 . 24 36 Gun 88 | . 27 4 . 24 33 Cannon 3 | . . . . . 3 Launcher . | . . . . . . Special . | . . . . . . Kinetic . | . . . . . . Thermal 45 | . . . . 20 25 Explosive . | . . . . . . Electromagnetic 46 | . 27 4 . 4 11 Robot Hit Streak 60 | . 6 5 . 29 60 Robot Miss Streak 2 | . 2 . . . 1 Penetration Max . | . . . . . . Secondary Targets . | . . . . . . Autonomous 46 | . . . . 20 26 Shots Hit Robots 81 | . 19 4 . 24 34 Core Hits 35 | . 13 2 . 7 13 Critical Hits . | . . . . . . Critical Kills . | . . . . . . Critical Parts Destroyed . | . . . . . . Melee Attacks . | . . . . . . Impact . | . . . . . . Slashing . | . . . . . . Piercing . | . . . . . . Sneak Attacks . | . . . . . . Combat Hostiles . | . . . . . . Follow-up Attacks . | . . . . . . Damage Inflicted 2025 | . 262 45 . 610 1108 Guns 1666 | . 262 45 . 610 749 Cannons 62 | . . . . . 62 Explosions 297 | . . . . . 297 Melee . | . . . . . . Ramming . | . . . . . . Kinetic . | . . . . . . Thermal 1149 | . . . . 544 605 Explosive 297 | . . . . . 297 Electromagnetic 579 | . 262 45 . 66 206 Impact . | . . . . . . Slashing . | . . . . . . Piercing . | . . . . . . Highest Corruption . | . . . . . . Average Corruption . | . . . . . . Corruption Purged . | . . . . . . Overload Shots . | . . . . . . Overflow Damage 84 | . . . . . 84 Projectiles . | . . . . . . Explosions 84 | . . . . . 84 Melee . | . . . . . . Knockbacks . | . . . . . . Impact . | . . . . . . Kinetic . | . . . . . . Secondary . | . . . . . . Self-Inflicted Damage . | . . . . . . Shots . | . . . . . . Rammed . | . . . . . . Targets Rammed . | . . . . . . Kicked . | . . . . . . Crushed . | . . . . . . Highest Temperature 89 | . 33 27 . 33 89 Average Temperature 18 | . 11 19 . 20 29 Received Heat Transfer 192 | . 66 . . 54 72 Siege Activations . | . . . . . . Robots Corrupted . | . . . . . . Combat Hostiles . | . . . . . . Parts Fried 2 | . 1 . . . 1 Impact Corruptions . | . . . . . . Robots Melted . | . . . . . . Combat Hostiles . | . . . . . . Parts Melted 3 | . . . . 1 2 Heat Transferred 1480 | . . . . 703 777 Parts Sabotaged . | . . . . . . Parts Stolen . | . . . . . . Parts Stripped . | . . . . . . Power Chain Reactions . | . . . . . . Missiles Intercepted . | . . . . . . Alert | -11 -10 -10 -10 -9 -8 ------- Run | Scr Mat Min Exi Min Mat Peak Influence 380 | . 187 104 . 173 380 Initial 51 | . . 51 . . 47 Average 98 | . 71 60 . 124 221 Maximum Alert Level 1 | . . . . . 1 Low Security (%) 92 | 100 100 100 . 100 41 Level 1 7 | . . . . . 58 Level 2 . | . . . . . . Level 3 . | . . . . . . Level 4 . | . . . . . . Level 5 . | . . . . . . High Security . | . . . . . . Max Security . | . . . . . . Squads Dispatched 3 | . 1 . . . 2 Investigation 2 | . 1 . . . 1 Extermination . | . . . . . . Reinforcement . | . . . . . . Assault . | . . . . . . Garrison 1 | . . . . . 1 Intercept . | . . . . . . Construction Impeded . | . . . . . . Haulers Reinforced . | . . . . . . Stealth | -11 -10 -10 -10 -9 -8 --------- Run | Scr Mat Min Exi Min Mat Distress Signals 2 | . 1 . . . 1 Communications Jammed . | . . . . . . Distress Signals . | . . . . . . Times Spotted 33 | . 12 2 . 6 13 Peak Tracking Total 6 | . 5 2 . 2 6 Tactical Retreats 2 | . . . . . 2 Traps | -11 -10 -10 -10 -9 -8 ------- Run | Scr Mat Min Exi Min Mat Traps Triggered . | . . . . . . Indirectly . | . . . . . . Trap Hack Attempts . | . . . . . . Triggered . | . . . . . . Disarmed . | . . . . . . Reprogrammed . | . . . . . . Reused . | . . . . . . Traps Extracted . | . . . . . . Installed . | . . . . . . Triggered . | . . . . . . Machines | -11 -10 -10 -10 -9 -8 ---------- Run | Scr Mat Min Exi Min Mat Machines Disabled 2 | . . . . 1 1 Max in Single Turn 1 | . . . . 1 1 Machines Sabotaged . | . . . . . . Garrisons Compromised . | . . . . . . Overloaded Fab Kills . | . . . . . . Fab Network Shutdowns . | . . . . . . Hacking | -11 -10 -10 -10 -9 -8 --------- Run | Scr Mat Min Exi Min Mat Machines Accessed 11 | . 3 . 5 . 3 Terminals 5 | . 3 . . . 2 Fabricators . | . . . . . . Repair Stations . | . . . . . . Recycling Units . | . . . . . . Scanalyzers . | . . . . . . Garrison Access 1 | . . . . . 1 Total Hacks 52 | . 5 . 38 . 9 Successful 44 | . 2 . 38 . 4 Failed 8 | . 3 . . . 5 Catastrophic 1 | . . . . . 1 Database Lockouts . | . . . . . . Manual 12 | . 3 . 1 . 8 Terminals 13 | . 5 . . . 8 Fabricators . | . . . . . . Repair Stations . | . . . . . . Recycling Units . | . . . . . . Scanalyzers . | . . . . . . Garrison Access 1 | . . . . . 1 Terminal Hacks 42 | . 2 . 38 . 2 Record 37 | . . . 37 . . Prototype ID Bank 1 | . 1 . . . . Level Access Points 1 | . . . . . 1 Branch Access Points 2 | . 1 . . . 1 EX-Prototype ID Bank 1 | . . . 1 . . Fabricator Hacks . | . . . . . . Repair Station Hacks . | . . . . . . Recycling Unit Hacks . | . . . . . . Scanalyzer . | . . . . . . Garrison Access Hacks 1 | . . . . . 1 Unlock Access 1 | . . . . . 1 Unauthorized Hacks 1 | . . . . . 1 Terminals 1 | . . . . . 1 Botnet 1 | . . . . . 1 Fabricators . | . . . . . . Repair Stations . | . . . . . . Recycling Units . | . . . . . . Scanalyzers . | . . . . . . Garrison Access . | . . . . . . Data Cores Recovered 1 | . . . . . 1 Used 1 | . . . . . 1 Hacking Detections 4 | . 2 . . . 2 Full Trace Events 2 | . 1 . . . 1 Feedback Events . | . . . . . . Feedback Blocked . | . . . . . . Robot Schematics Acquired . | . . . . . . Robots Built . | . . . . . . Matter . | . . . . . . Time . | . . . . . . Total Robot Build Rating . | . . . . . . Part Schematics Acquired . | . . . . . . Parts Built . | . . . . . . Matter . | . . . . . . Time . | . . . . . . Total Part Build Rating . | . . . . . . Parts Repaired . | . . . . . . Time . | . . . . . . Parts Recycled . | . . . . . . Recycled Matter . | . . . . . . Retrieved Matter . | . . . . . . Retrieved Components . | . . . . . . Parts Scanalyzed . | . . . . . . Part Schematics Acquired . | . . . . . . Parts Damaged . | . . . . . . Bothacking | -11 -10 -10 -10 -9 -8 ------------ Run | Scr Mat Min Exi Min Mat Used RIF Installer . | . . . . . . Robots Hacked . | . . . . . . Non-combat . | . . . . . . Combat . | . . . . . . Robot Hacks Applied . | . . . . . . Relay Couplers Released . | . . . . . . Robots Rewired . | . . . . . . Allies Hacked . | . . . . . . Hacks Repelled . | . . . . . . Allies | -11 -10 -10 -10 -9 -8 -------- Run | Scr Mat Min Exi Min Mat Total Allies 4 | . . 4 . . . Largest Group 4 | . . 4 4 3 3 Highest-Rated Group 71 | . . 71 71 40 40 Highest-Rated Ally 31 | . . 31 31 16 16 Total Orders . | . . . . . . Ally Attacks 13 | . . 1 . 1 11 Total Damage 206 | . . 22 . 13 171 Kills 1 | . . . . . 1 Allies Corrupted . | . . . . . . Allies Melted . | . . . . . . Intel | -11 -10 -10 -10 -9 -8 ------- Run | Scr Mat Min Exi Min Mat Robot Analysis Total . | . . . . . . Derelict Logs Recovered 1 | . . . . 1 . Drone Launches . | . . . . . . Drone Recoveries . | . . . . . . Exploration | -11 -10 -10 -10 -9 -8 ------------- Run | Scr Mat Min Exi Min Mat Turns Passed 1340 | 43 221 277 426 255 118 Spaces Moved 1649 | 34 163 414 608 284 146 Core 4 | 4 . . . . . Treads . | . . . . . . Legs 124 | 30 94 . . . . Wheels . | . . . . . . Hover 1521 | . 69 414 608 284 146 Flight . | . . . . . . Fastest Speed 50 | 50 60 60 60 56 56 Average Speed 63 | 111 94 60 60 56 56 Slowest Speed 120 | 120 120 60 60 60 56 Overloaded Moves . | . . . . . . Propulsion Burnouts . | . . . . . . Robots Hopped . | . . . . . . Cave-ins Triggered . | . . . . . . Exploration Rate (%) 53 | 4 42 90 93 71 18 Regions Visited 5 Branch Regions 3 Pre-discovered Areas 1 | . . . 1 . . Known Exits Taken 5 | 1 1 1 1 1 . Unknown Exits Taken . | . . . . . . Scrap Searched 2 | . . . . 2 . Spaces Dug . | . . . . . . Terrain Destroyed 29 | . . . . . 29 Melee . | . . . . . . Projectile 2 | . . . . . 2 AOE 27 | . . . . . 27 Terrain Rammed . | . . . . . . Walls Destroyed . | . . . . . . Machines Disabled . | . . . . . . Actions | -11 -10 -10 -10 -9 -8 --------- Run | Scr Mat Min Exi Min Mat Total 1890 | 37 201 438 669 374 171 Wait 159 | . 7 19 58 74 1 Move 1644 | 33 162 413 607 283 146 Hop . | . . . . . . Pick Up 9 | . 1 . 1 3 4 Fast Attach 4 | 4 . . . . . Attach 4 | . . . 1 2 1 Detach . | . . . . . . Swap 3 | . 1 . . . 2 Drop 5 | . . . 2 . 3 Fire 46 | . 27 4 . 4 11 Melee . | . . . . . . Ram . | . . . . . . Kick . | . . . . . . Crush . | . . . . . . Escape Stasis . | . . . . . . Rewire . | . . . . . . Trap . | . . . . . . Miscellaneous 16 | . 3 2 . 8 3 Route ------- -11/Scrapyard -10/Materials -10/Mines (discovered 3 exits: *Mat x2 / *Exi) -10/Exiles -9/Mines -8/Materials (discovered 4 exits: Fac x3 / Gar) History --------- Turn | Location | Event 3 | -11/Scrapyard | Identified exit to Materials 3 | -11/Scrapyard | Discovered exit to Materials (range 15) 44 | -11/Scrapyard | Entered Materials 143 | -10/Materials | Identified exit to Mines 265 | -10/Materials | Entered Mines 267 | -10/Mines | Assisted by bots powering up and referring to "LRC-V3" 306 | -10/Mines | Build established: Hacker-Mutant 325 | -10/Mines | Received a Mining Laser from a helpful Derelict 422 | -10/Mines | Identified exit to Materials 422 | -10/Mines | Discovered exit to Materials (range 7) 492 | -10/Mines | Reached level 2 506 | -10/Mines | Discovered exit to Materials (range 3) 526 | -10/Mines | Deemed a non-threat by the Exiles lab entrance 526 | -10/Mines | Identified exit to Exiles 526 | -10/Mines | Discovered exit to Exiles (range 5) 542 | -10/Mines | Entered Exiles 542 | -10/Exiles | Accompanied by 4 allies 567 | -10/Exiles | Met 8R-AWN 578 | -10/Exiles | Met EX-HEX 614 | -10/Exiles | Met EX-BIN 621 | -10/Exiles | Aligned with FarCom system 622 | -10/Exiles | Given EX-Vault access code 638 | -10/Exiles | Opened EX-Vault 641 | -10/Exiles | Upgraded with Weapon slot (x1) 644 | -10/Exiles | Found AWS/Thermal 647 | -10/Exiles | Upgraded with Power slot (x1) 647 | -10/Exiles | Upgraded with Propulsion slot (x1) 647 | -10/Exiles | Upgraded with Utility slot (x1) 647 | -10/Exiles | Upgraded with Weapon slot (x1) 659 | -10/Exiles | Warned to stay clear of 0b10 Research branches 677 | -10/Exiles | Met EX-DEC 722 | -10/Exiles | Visited The Gauntlet 815 | -10/Exiles | Learned location of Zion (-7) 929 | -10/Exiles | Identified exit to Mines 929 | -10/Exiles | Discovered exit to Mines (range 14) 968 | -10/Exiles | Left Exiles lab with AWS/Thermal 968 | -10/Exiles | Entered Mines 968 | -9/Mines | Accompanied by 3 allies 978 | -9/Mines | Reached level 3 1050 | -9/Mines | Learned Materials terminal intel 1077 | -9/Mines | Found a hidden stash of uninstalled traps 1169 | -9/Mines | Identified exit to Materials 1169 | -9/Mines | Discovered exit to Materials (range 3) 1223 | -9/Mines | Entered Materials 1223 | -8/Materials | Accompanied by 3 allies 1224 | -8/Materials | Loaded intel: 12 terminal locations 1225 | -8/Materials | Reached level 4 1225 | -8/Materials | Reached level 5 1225 | -8/Materials | Reached level 6 1247 | -8/Materials | Identified exit to Garrison 1254 | -8/Materials | Garrison activated, responded to threat 1274 | -8/Materials | Reached level 7 1321 | -8/Materials | Build established: Hacker-Skirmisher 1323 | -8/Materials | Identified exit to Factory 1341 | -8/Materials | Self-destructed Last Messages --------------- >>Access(Main) Found 3 level access points to Factory: (13,51) (45,92) (86,47) Map updated. 01326_ K-01 Serf collects debris. 01328_ U-05 Engineer lays Concrete. 01329_ K-01 Serf collects debris. 01329_ U-05 Engineer lays Concrete. 01329_ K-01 Serf collects debris. 01331_ U-05 Engineer lays Concrete. 01331_ K-01 Serf collects debris. 01333_ Acquired Prototype Energy Gun. 01333_ K-01 Serf collects debris. 01334_ U-05 Engineer builds a Wall. 01334_ Identified Adv. Beam Rifle. 01334_ K-01 Serf collects debris. 01338_ U-05 Engineer builds a Wall. 01338_ K-01 Serf collects debris. Map ----- +----------------------------------------------------+ | | | | | | | | | | | | | | | | | | | | | | | | | ??????????????????????????????????????????????? | | ??????????????????????????????????????????????? | | ??????????????????????????????????????????????? | | ??????????????????????????????????????????????? | | ??????????????????????????????????????????????? | | #######???????????#?#######???????????????????? | | # ! #???????????#] ?#?????????????????? | | # #???????????# #?????????????????? | | # """ ############# """ """ #?????????????????? | | # """ # # ! # """ """ #?????????????????? | | # """ # # """ # """ """ #?????????????????? | | # # # """ # #?????????????????? | | # #^^# """ # #?????????????????? | | # #^^+ /# ! @ / #???????????????### | | # " # # """ ####/######????????######## | | # T [ # # """ ## #????????????# # | | # " + + """ + #????????????# # | | # # # ## #????????????# / | | ####### ## # #????????????# # | | ?????# # % # ##????????????# # | | ?????# =[ %= !* #?????????????# % # | | ?????# [% *[= % ##????????????##+####### | | ?????# ! " # [ T#?????????????# #?????? | | ??#####+### # %= ##?????????????# #?????? | | ??# #??????########+###???? | | ??# = #??????# ## #???? | | ??# ! * #??????# ## #???? | | ??# #" """ ######## ## #???? | | ??# #T """ *%!# [ # ## #???? | | ??#/ ==""" #" """ = # # ## ! #???? | | ??# """ ## ^ # ">" # ## #???? | | ??# """ ##^ % # "G" # ## #???? | | ??# ## """ # """ + ## #???? | | ??########### """ # # ## #???? | | ????????????#* """ ##+######+######+####?? | | ????????????#%! ! #?? | | ????????? += % #?? | | ????????????# ! ! #?? | +----------------------------------------------------+ Best States ------------- Heat Dissipation 25 Energy Generation 10 Energy Capacity 250 Matter Stores 300 Matter Capacity 300 Sight Range 16 Terrain Scan Density 10 Resistance: KI 55 Resistance: TH 55 Resistance: EX 55 Resistance: EM 35 Resistance: I 35 Resistance: S 35 Resistance: P 35 Evasion (%) 53 Offensive Hacking 20 Item Schematics ----------------- None Robot Schematics ------------------ None Fabricated ------------ Nothing Alien Tech Used ----------------- None Achievements -------------- None Challenges ------------ None RPGLIKE | -11 -10 -10 -10 -9 -8 --------- Run | Scr Mat Min Exi Min Mat Levels Raised 6 | . . 1 . 1 4 XP Earned 15656 | 6000 735 765 350 1940 5866 XP Spent 8750 | . 950 . 6150 1650 . Upgrades 21 | . 3 . 13 5 . Power Slot 1 | . . . 1 . . Propulsion Slot 1 | . . . 1 . . Utility Slot 1 | . . . 1 . . Weapon Slot 2 | . . . 2 . . Mass Support 2 | . 2 . . . . Inventory Capacity 2 | . 1 . 1 . . KI Resistance % 4 | . . . 4 . . TH Resistance % 4 | . . . 3 1 . EX Resistance % 4 | . . . . 4 . Protomatter Created 407 | . 75 15 . 234 83 Integrity Restored 262 | . 41 45 . 106 70 Core 226 | . 35 45 . 76 70 Parts 36 | . 6 . . 30 . Protomatter Decayed 398 | . 60 . . 196 142 Game ------ Seed CloakArmageddonFacilitator Manual? 0 Play Time 00:22:57 Cumulative 60.1 hours Start 2021.02.18 @ 18:46:39 End 2021.02.18 @ 19:12:26 Sessions 1 Manual Loads 0 Difficulty Explorer Special Mode Winter2019/RPGLIKE Game No. 25 Rogue 0 Adventurer 5 Explorer 20 Win Type - Total 8 Types 4/1/0/1/1/0/0/1/0 Lore% 68 Gallery% 63 Achievement% 65 Wizard Run 0 Options --------- ASCII 0 Keyboard 0 Movement Mouse Keybinds 0 Fullscreen 0 Font 14/Terminus Map View 76x50 Tactical HUD 1 Map Filters NONE Filters NONE Steam 1 RUN: 3ac5a31d-0065-44ba-8bb7-07c7a19574b4